fUSD/lending_fUSD_20260612
["ID","MTS","AMOUNT","RATE_DAILY","PERIOD"]
[424883256,1781231462000,-85.57749614,0.00031811,2]
[424883258,1781231462000,-788.0,0.00033129,30]
[424883259,1781231462000,-35233.87702091,0.00035,120]
[424883257,1781231462000,-215.72950386,0.00031811,2]
[424883260,1781231462000,-26712.2827471,0.00035,120]
[424883255,1781231462000,-209.92250386,0.00029028,2]
[424883234,1781231462000,-334.3086151,0.00035,2]
[424883245,1781231462000,-1135.43627322,0.00035,7]
[424883247,1781231462000,-173616.76378468,0.00035,120]
[424883244,1781231462000,-200.0,0.00035,120]
[424883221,1781231462000,-247.05,0.00035,2]
[424883222,1781231462000,-2417.747854,0.00035,120]
[424883226,1781231462000,-3783.66323506,0.00035,120]
[424883241,1781231462000,-1449.0,0.00035,120]
[424883227,1781231462000,-1897.46000004,0.00035,120]
[424883225,1781231462000,-3606.22094214,0.00035,120]
[424883224,1781231462000,-945.66181988,0.00035,120]
[424883228,1781231462000,-3398.07905085,0.00035,120]
[424883229,1781231462000,-17249.24403656,0.00035,120]
[424883223,1781231462000,-14985.38072327,0.00035,120]
[424883232,1781231462000,-3513.32,0.00035,120]
[424883230,1781231462000,-37728.2296609,0.00035,120]
[424883242,1781231462000,-256.5126353,0.00035,120]
[424883243,1781231462000,-1776.85456977,0.00035,2]
[424883238,1781231462000,-1664.39715097,0.00035,7]
[424883215,1781231462000,-867.71381198,0.0003449,2]
[424883240,1781231462000,-200.0,0.00035,10]
[424883239,1781231462000,-1078.81045,0.00035,10]
[424883231,1781231462000,-2000.0,0.00035,30]
[424883233,1781231462000,-880.74,0.00035,60]
[424883264,1781231561000,166.66,0.00022364,30]
[424883265,1781231562000,166.66,0.00022816,30]
[424883266,1781231593000,-161.58083644,0.00012898,3]
[424883267,1781231647000,-500.0,0.00012961,2]
[424883268,1781231666000,-321.86040934,0.00012961,2]
[424883269,1781231720000,-500.0,0.00013,2]
[424883270,1781231738000,-578.63673718,0.00013,2]
[424883271,1781231791000,-160.0,0.00013001,2]
[424883272,1781231844000,-1000.0,0.00013153,2]
[424883276,1781231897000,-500.0,0.00013106,2]
[424883277,1781231916000,-373.97,0.00013106,2]
[424883278,1781231970000,-166.55,0.0001313,2]
[424883279,1781232225000,-967.62,0.00012957,2]
[424883280,1781232278000,-283.03272286,0.000136,2]
[424883281,1781232332000,-200.0,0.000136,4]
[424883287,1781232385000,-188.68848192,0.000136,2]
[424883289,1781232438000,-188.6884819,0.0001365,2]
[424883290,1781232492000,-500.0,0.000135,2]
[424883291,1781232511000,-437.00100012,0.000135,2]
[424883292,1781232563000,-500.0,0.000135,2]
[424883293,1781232582000,-579.40016911,0.000135,2]
[424883301,1781232635000,-150.0,0.000135,4]
[424883325,1781232637000,-500.0,0.00013599,2]
[424883315,1781232637000,-181.58415321,0.00013599,2]
[424883310,1781232637000,-150.0,0.00013599,2]
[424883313,1781232637000,-215.3256174,0.00013599,2]
[424883306,1781232637000,-467.45412978,0.000135,2]
[424883304,1781232637000,-151.0,0.0001244,2]
[424883312,1781232637000,-418.56275222,0.00013599,2]
[424883307,1781232637000,-50.0,0.000135,4]
[424883305,1781232637000,-313.12272072,0.000135,2]
[424883316,1781232637000,-500.0,0.00013599,2]
[424883309,1781232637000,-300.0,0.00013598,2]
[424883308,1781232637000,-346.99871046,0.0001359,2]
[424883317,1781232637000,-177.01021185,0.00013599,2]
[424883311,1781232637000,-500.0,0.00013599,2]
[424883314,1781232637000,-474.53819445,0.00013599,2]
[424883326,1781232637000,-500.0,0.00013599,2]
[424883331,1781232637000,-500.0,0.00013599,2]
[424883328,1781232637000,-500.0,0.00013599,2]
[424883330,1781232637000,-500.44508997,0.00013599,2]
[424883327,1781232637000,-500.0,0.00013599,2]
[424883323,1781232637000,-2000.0,0.00013599,2]
[424883329,1781232637000,-500.0,0.00013599,2]
[424883321,1781232637000,-500.0,0.00013599,2]
[424883320,1781232637000,-319.94617449,0.00013599,2]
[424883322,1781232637000,-250.0,0.00013599,2]
[424883319,1781232637000,-234.37188071,0.00013599,2]
[424883318,1781232637000,-263.24571923,0.00013599,2]
[424883324,1781232637000,-500.0,0.00013599,2]
[424883408,1781232638000,-1319.455,0.000136,2]
[424883419,1781232638000,-346.99871046,0.00013689,2]
[424883417,1781232638000,-500.0,0.000136,4]
[424883412,1781232638000,-275.66458721,0.000136,2]
[424883414,1781232638000,-73240.27377192,0.000136,2]
[424883424,1781232638000,-500.0,0.00013698,2]
[424883415,1781232638000,-2172336.14639183,0.000136,2]
[424883410,1781232638000,-469.73578931,0.000136,2]
[424883332,1781232638000,-500.0,0.00013599,2]
[424883401,1781232638000,-151.0,0.0001244,2]
[424883336,1781232638000,-465.09659905,0.000136,2]
[424883335,1781232638000,-9353.63234016,0.000136,2]
[424883337,1781232638000,-1573.1,0.000136,2]
[424883333,1781232638000,-2655.72553156,0.00013599,2]
[424883334,1781232638000,-239677.78636508,0.000136,2]
[424883418,1781232638000,-166.66,0.00013605,2]
[424883403,1781232638000,-1289.10915544,0.000136,2]
[424883416,1781232638000,-200.0,0.000136,4]
[424883423,1781232638000,-500.0,0.00013698,2]
[424883420,1781232638000,-500.0,0.00013698,2]
[424883422,1781232638000,-500.0,0.00013698,2]
[424883440,1781232638000,-553.42846151,0.00013699,2]
[424883438,1781232638000,-553.42846151,0.00013699,2]
[424883441,1781232638000,-553.42846151,0.00013699,2]
[424883439,1781232638000,-553.42846151,0.00013699,2]
[424883436,1781232638000,-1500000.0,0.00013699,2]
[424883437,1781232638000,-584.88713548,0.00013699,2]
[424883429,1781232638000,-500.0,0.00013698,2]
[424883431,1781232638000,-281.6,0.00013699,2]
[424883433,1781232638000,-195.55,0.00013699,2]
[424883430,1781232638000,-337.92,0.00013699,2]
[424883426,1781232638000,-500.0,0.00013698,2]
[424883428,1781232638000,-500.0,0.00013698,2]
[424883432,1781232638000,-234.66,0.00013699,2]
[424883435,1781232638000,-814.83,0.00013699,2]
[424883427,1781232638000,-500.0,0.00013698,2]
[424883425,1781232638000,-500.0,0.00013698,2]
[424883434,1781232638000,-162.96,0.00013699,2]
[424883421,1781232638000,-500.0,0.00013698,2]
[424883472,1781232639000,-553.42846151,0.00013699,2]
[424883474,1781232639000,-553.42846151,0.00013699,2]
[424883475,1781232639000,-553.42846151,0.00013699,2]
[424883468,1781232639000,-553.42846151,0.00013699,2]
[424883470,1781232639000,-553.42846151,0.00013699,2]
[424883471,1781232639000,-553.42846151,0.00013699,2]
[424883469,1781232639000,-553.42846151,0.00013699,2]
[424883476,1781232639000,-553.42846151,0.00013699,2]
[424883473,1781232639000,-553.42846151,0.00013699,2]
[424883478,1781232639000,-553.42846151,0.00013699,2]
[424883485,1781232639000,-553.42846151,0.00013699,2]
[424883477,1781232639000,-553.42846151,0.00013699,2]
[424883479,1781232639000,-553.42846151,0.00013699,2]
[424883488,1781232639000,-553.42846151,0.00013699,2]
[424883484,1781232639000,-553.42846151,0.00013699,2]
[424883482,1781232639000,-553.42846151,0.00013699,2]
[424883480,1781232639000,-553.42846151,0.00013699,2]
[424883483,1781232639000,-553.42846151,0.00013699,2]
[424883465,1781232639000,-553.42846151,0.00013699,2]
[424883486,1781232639000,-553.42846151,0.00013699,2]
[424883487,1781232639000,-553.42846151,0.00013699,2]
[424883481,1781232639000,-553.42846151,0.00013699,2]
[424883467,1781232639000,-553.42846151,0.00013699,2]
[424883452,1781232639000,-553.42846151,0.00013699,2]
[424883463,1781232639000,-553.42846151,0.00013699,2]
[424883489,1781232639000,-553.42846151,0.00013699,2]
[424883449,1781232639000,-553.42846151,0.00013699,2]
[424883444,1781232639000,-553.42846151,0.00013699,2]
[424883443,1781232639000,-553.42846151,0.00013699,2]
[424883450,1781232639000,-553.42846151,0.00013699,2]
[424883442,1781232639000,-553.42846151,0.00013699,2]
[424883445,1781232639000,-553.42846151,0.00013699,2]
[424883448,1781232639000,-553.42846151,0.00013699,2]
[424883446,1781232639000,-553.42846151,0.00013699,2]
[424883447,1781232639000,-553.42846151,0.00013699,2]
[424883466,1781232639000,-553.42846151,0.00013699,2]
[424883453,1781232639000,-553.42846151,0.00013699,2]
[424883454,1781232639000,-553.42846151,0.00013699,2]
[424883455,1781232639000,-553.42846151,0.00013699,2]
[424883456,1781232639000,-553.42846151,0.00013699,2]
[424883462,1781232639000,-553.42846151,0.00013699,2]
[424883457,1781232639000,-553.42846151,0.00013699,2]
[424883459,1781232639000,-553.42846151,0.00013699,2]
[424883460,1781232639000,-553.42846151,0.00013699,2]
[424883461,1781232639000,-553.42846151,0.00013699,2]
[424883458,1781232639000,-553.42846151,0.00013699,2]
[424883464,1781232639000,-553.42846151,0.00013699,2]
[424883451,1781232639000,-553.42846151,0.00013699,2]
[424883491,1781232639000,-553.42846151,0.00013699,2]
[424883512,1781232639000,-544.20465384,0.00013699,2]
[424883490,1781232639000,-553.42846151,0.00013699,2]
[424883520,1781232639000,-544.20465384,0.00013699,2]
[424883521,1781232639000,-544.20465384,0.00013699,2]
[424883524,1781232639000,-544.20465384,0.00013699,2]
[424883523,1781232639000,-544.20465384,0.00013699,2]
[424883515,1781232639000,-544.20465384,0.00013699,2]
[424883522,1781232639000,-544.20465384,0.00013699,2]
[424883526,1781232639000,-544.20465384,0.00013699,2]
[424883525,1781232639000,-544.20465384,0.00013699,2]
[424883527,1781232639000,-544.20465376,0.00013699,2]
[424883528,1781232639000,-734.17842598,0.000137,2]
[424883518,1781232639000,-544.20465384,0.00013699,2]
[424883538,1781232639000,-500.0,0.00013799,2]
[424883529,1781232639000,-1060.54665509,0.000137,2]
[424883533,1781232639000,-800.0,0.000137,5]
[424883531,1781232639000,-2500.0,0.000137,2]
[424883532,1781232639000,-404.36,0.000137,2]
[424883536,1781232639000,-1063.13985874,0.00013799,5]
[424883537,1781232639000,-1063.13985874,0.00013799,5]
[424883535,1781232639000,-1063.13985874,0.00013799,5]
[424883534,1781232639000,-152.0,0.00013793,2]
[424883539,1781232639000,-500.0,0.00013799,2]
[424883492,1781232639000,-553.42846151,0.00013699,2]
[424883530,1781232639000,-500.0,0.000137,5]
[424883514,1781232639000,-544.20465384,0.00013699,2]
[424883540,1781232639000,-500.0,0.00013799,2]
[424883519,1781232639000,-544.20465384,0.00013699,2]
[424883517,1781232639000,-544.20465384,0.00013699,2]
[424883494,1781232639000,-553.42846151,0.00013699,2]
[424883495,1781232639000,-553.42846151,0.00013699,2]
[424883493,1781232639000,-553.42846151,0.00013699,2]
[424883496,1781232639000,-553.42846151,0.00013699,2]
[424883497,1781232639000,-553.42846151,0.00013699,2]
[424883499,1781232639000,-553.42846151,0.00013699,2]
[424883498,1781232639000,-553.42846151,0.00013699,2]
[424883502,1781232639000,-553.42846151,0.00013699,2]
[424883504,1781232639000,-544.20465384,0.00013699,2]
[424883503,1781232639000,-553.42846151,0.00013699,2]
[424883500,1781232639000,-553.42846151,0.00013699,2]
[424883513,1781232639000,-544.20465384,0.00013699,2]
[424883501,1781232639000,-553.42846151,0.00013699,2]
[424883509,1781232639000,-544.20465384,0.00013699,2]
[424883507,1781232639000,-544.20465384,0.00013699,2]
[424883506,1781232639000,-544.20465384,0.00013699,2]
[424883508,1781232639000,-544.20465384,0.00013699,2]
[424883505,1781232639000,-544.20465384,0.00013699,2]
[424883510,1781232639000,-544.20465384,0.00013699,2]
[424883511,1781232639000,-544.20465384,0.00013699,2]
[424883516,1781232639000,-544.20465384,0.00013699,2]
[424883569,1781232640000,-541.30595417,0.00013799,2]
[424883568,1781232640000,-500.0,0.00013799,2]
[424883565,1781232640000,-500.0,0.00013799,2]
[424883567,1781232640000,-500.0,0.00013799,2]
[424883573,1781232640000,-500.0,0.00013799,2]
[424883571,1781232640000,-500.0,0.00013799,2]
[424883564,1781232640000,-500.0,0.00013799,2]
[424883574,1781232640000,-500.0,0.00013799,2]
[424883572,1781232640000,-500.0,0.00013799,2]
[424883586,1781232640000,-500.0,0.00013799,2]
[424883578,1781232640000,-500.0,0.00013799,2]
[424883576,1781232640000,-500.0,0.00013799,2]
[424883575,1781232640000,-500.0,0.00013799,2]
[424883581,1781232640000,-500.0,0.00013799,2]
[424883577,1781232640000,-500.0,0.00013799,2]
[424883580,1781232640000,-500.0,0.00013799,2]
[424883579,1781232640000,-500.0,0.00013799,2]
[424883583,1781232640000,-500.0,0.00013799,2]
[424883584,1781232640000,-500.0,0.00013799,2]
[424883582,1781232640000,-500.0,0.00013799,2]
[424883570,1781232640000,-500.0,0.00013799,2]
[424883587,1781232640000,-500.0,0.00013799,2]
[424883566,1781232640000,-500.0,0.00013799,2]
[424883562,1781232640000,-500.0,0.00013799,2]
[424883559,1781232640000,-500.0,0.00013799,2]
[424883585,1781232640000,-500.0,0.00013799,2]
[424883543,1781232640000,-582.55002074,0.00013799,2]
[424883542,1781232640000,-500.0,0.00013799,2]
[424883541,1781232640000,-500.0,0.00013799,2]
[424883544,1781232640000,-241.128,0.00013799,2]
[424883548,1781232640000,-500.0,0.00013799,2]
[424883546,1781232640000,-500.0,0.00013799,2]
[424883547,1781232640000,-500.0,0.00013799,2]
[424883545,1781232640000,-3648.288,0.00013799,2]
[424883549,1781232640000,-500.0,0.00013799,2]
[424883550,1781232640000,-500.0,0.00013799,2]
[424883551,1781232640000,-500.0,0.00013799,2]
[424883554,1781232640000,-500.0,0.00013799,2]
[424883552,1781232640000,-500.0,0.00013799,2]
[424883561,1781232640000,-410.11440897,0.00013799,2]
[424883553,1781232640000,-500.0,0.00013799,2]
[424883555,1781232640000,-318.60196123,0.00013799,2]
[424883557,1781232640000,-500.0,0.00013799,2]
[424883556,1781232640000,-500.0,0.00013799,2]
[424883558,1781232640000,-500.0,0.00013799,2]
[424883560,1781232640000,-500.0,0.00013799,2]
[424883563,1781232640000,-500.0,0.00013799,2]
[424883590,1781232640000,-500.0,0.00013799,2]
[424883595,1781232640000,-500.0,0.00013799,2]
[424883589,1781232640000,-500.0,0.00013799,2]
[424883615,1781232640000,-1100.0,0.000139,5]
[424883620,1781232640000,-875.8866,0.00013923,2]
[424883618,1781232640000,-502.91402391,0.00013921,2]
[424883625,1781232640000,-1090.49,0.00013986,2]
[424883619,1781232640000,-500.0,0.00013921,2]
[424883621,1781232640000,-2000.0,0.00013923,2]
[424883622,1781232640000,-2000.0,0.00013986,2]
[424883627,1781232640000,-556.76587923,0.00014021,2]
[424883626,1781232640000,-764.1600855,0.0001399,2]
[424883639,1781232640000,-500.0,0.00014022,2]
[424883628,1781232640000,-500.0,0.00014021,2]
[424883629,1781232640000,-621.18,0.00014022,2]
[424883630,1781232640000,-621.18,0.00014022,2]
[424883631,1781232640000,-621.18,0.00014022,2]
[424883632,1781232640000,-621.18,0.00014022,2]
[424883634,1781232640000,-621.18,0.00014022,2]
[424883633,1781232640000,-621.18,0.00014022,2]
[424883635,1781232640000,-621.18,0.00014022,2]
[424883638,1781232640000,-621.18,0.00014022,2]
[424883637,1781232640000,-621.18,0.00014022,2]
[424883588,1781232640000,-500.0,0.00013799,2]
[424883616,1781232640000,-1400.0,0.000139,5]
[424883617,1781232640000,-200.0,0.00013905,2]
[424883623,1781232640000,-2000.0,0.00013986,2]
[424883607,1781232640000,-164.66,0.00013847,2]
[424883591,1781232640000,-500.0,0.00013799,2]
[424883614,1781232640000,-374.13126552,0.000139,2]
[424883598,1781232640000,-500.0,0.00013799,2]
[424883636,1781232640000,-621.18,0.00014022,2]
[424883596,1781232640000,-500.0,0.00013799,2]
[424883594,1781232640000,-172.1676913,0.00013799,2]
[424883592,1781232640000,-238.7383011,0.00013799,2]
[424883600,1781232640000,-515.12373106,0.00013799,2]
[424883593,1781232640000,-500.0,0.00013799,2]
[424883599,1781232640000,-500.0,0.00013799,2]
[424883602,1781232640000,-1010.0,0.000138,2]
[424883597,1781232640000,-500.0,0.00013799,2]
[424883606,1781232640000,-156.5,0.00013819,2]
[424883612,1781232640000,-500.0,0.000139,2]
[424883601,1781232640000,-503.41422681,0.000138,2]
[424883604,1781232640000,-800.0,0.000138,5]
[424883603,1781232640000,-1010.0,0.000138,3]
[424883605,1781232640000,-1100.0,0.000138,5]
[424883611,1781232640000,-500.0,0.000139,2]
[424883610,1781232640000,-166.66,0.00013891,2]
[424883608,1781232640000,-163.75,0.00013847,2]
[424883613,1781232640000,-500.0,0.000139,2]
[424883609,1781232640000,-307.52,0.00013887,2]
[424883679,1781232641000,-301.04,0.00014179,2]
[424883677,1781232641000,-621.18,0.00014174,2]
[424883674,1781232641000,-500.0,0.00014173,2]
[424883680,1781232641000,-2000.0,0.0001428,2]
[424883664,1781232641000,-185.2409854,0.00014022,2]
[424883673,1781232641000,-621.18,0.00014173,2]
[424883666,1781232641000,-621.18,0.00014169,2]
[424883665,1781232641000,-2000.0,0.00014138,2]
[424883684,1781232641000,-621.18,0.0001435,2]
[424883676,1781232641000,-509.90810486,0.00014173,2]
[424883675,1781232641000,-500.0,0.00014173,2]
[424883692,1781232641000,-301.04,0.00014603,2]
[424883681,1781232641000,-998.99,0.0001428,2]
[424883683,1781232641000,-535.35,0.00014338,2]
[424883682,1781232641000,-301.04,0.000143,2]
[424883686,1781232641000,-301.04,0.00014393,2]
[424883689,1781232641000,-301.04,0.00014541,2]
[424883687,1781232641000,-166.66,0.00014464,2]
[424883696,1781232641000,-150.0,0.00014694,2]
[424883685,1781232641000,-2005.94132076,0.00014378,2]
[424883688,1781232641000,-301.04,0.00014472,2]
[424883663,1781232641000,-500.0,0.00014022,2]
[424883678,1781232641000,-166.66,0.00014177,2]
[424883667,1781232641000,-621.18,0.00014169,2]
[424883644,1781232641000,-500.0,0.00014022,2]
[424883670,1781232641000,-621.18,0.00014173,2]
[424883643,1781232641000,-500.0,0.00014022,2]
[424883642,1781232641000,-500.0,0.00014022,2]
[424883690,1781232641000,-307.52,0.00014541,2]
[424883648,1781232641000,-500.0,0.00014022,2]
[424883645,1781232641000,-500.0,0.00014022,2]
[424883647,1781232641000,-500.0,0.00014022,2]
[424883646,1781232641000,-500.0,0.00014022,2]
[424883649,1781232641000,-500.0,0.00014022,2]
[424883653,1781232641000,-523.0467315,0.00014022,2]
[424883660,1781232641000,-500.0,0.00014022,2]
[424883651,1781232641000,-513.58758268,0.00014022,2]
[424883672,1781232641000,-621.18,0.00014173,2]
[424883654,1781232641000,-526.03552456,0.00014022,2]
[424883652,1781232641000,-567.54,0.00014022,2]
[424883650,1781232641000,-500.0,0.00014022,2]
[424883659,1781232641000,-500.0,0.00014022,2]
[424883655,1781232641000,-500.0,0.00014022,2]
[424883657,1781232641000,-500.0,0.00014022,2]
[424883656,1781232641000,-500.0,0.00014022,2]
[424883668,1781232641000,-500.0,0.00014169,2]
[424883662,1781232641000,-500.0,0.00014022,2]
[424883669,1781232641000,-500.0,0.00014169,2]
[424883671,1781232641000,-621.18,0.00014173,2]
[424883661,1781232641000,-500.0,0.00014022,2]
[424883658,1781232641000,-500.0,0.00014022,2]
[424883695,1781232641000,-150.0,0.00014694,2]
[424883697,1781232641000,-150.0,0.00014694,2]
[424883694,1781232641000,-301.04,0.0001466,2]
[424883725,1781232641000,-621.18,0.00014999,2]
[424883734,1781232641000,-301.04,0.00015092,2]
[424883735,1781232641000,-301.04,0.00015127,2]
[424883728,1781232641000,-621.35096733,0.00014999,2]
[424883729,1781232641000,-2500.0,0.00015015,2]
[424883727,1781232641000,-621.18,0.00014999,2]
[424883730,1781232641000,-301.04,0.00015019,2]
[424883733,1781232641000,-301.04,0.00015056,2]
[424883732,1781232641000,-166.66,0.00015037,2]
[424883726,1781232641000,-621.18,0.00014999,2]
[424883731,1781232641000,-307.52,0.00015019,2]
[424883724,1781232641000,-621.18,0.00014999,2]
[424883737,1781232641000,-301.04,0.00015161,2]
[424883738,1781232641000,-301.04,0.00015194,2]
[424883736,1781232641000,-313.93,0.00015153,2]
[424883744,1781232641000,-301.04,0.00015319,2]
[424883742,1781232641000,-301.04,0.00015289,2]
[424883743,1781232641000,-404.36,0.000153,2]
[424883740,1781232641000,-301.04,0.00015227,2]
[424883739,1781232641000,-307.52,0.00015195,2]
[424883741,1781232641000,-301.04,0.00015258,2]
[424883746,1781232641000,-301.29,0.00015349,2]
[424883745,1781232641000,-301.04,0.00015349,2]
[424883693,1781232641000,-313.93,0.00014618,2]
[424883748,1781232641000,-307.52,0.00015349,2]
[424883723,1781232641000,-621.18,0.00014999,2]
[424883747,1781232641000,-313.93,0.00015349,2]
[424883710,1781232641000,-2500.0,0.0001485,2]
[424883691,1781232641000,-967.62,0.00014577,2]
[424883719,1781232641000,-301.04,0.00014941,2]
[424883698,1781232641000,-150.0,0.00014694,2]
[424883700,1781232641000,-301.04,0.00014714,2]
[424883702,1781232641000,-873.97,0.00014744,2]
[424883699,1781232641000,-278.72170502,0.00014694,2]
[424883701,1781232641000,-255.0,0.00014714,2]
[424883709,1781232641000,-2500.0,0.0001485,2]
[424883705,1781232641000,-301.04,0.00014811,2]
[424883707,1781232641000,-2500.0,0.0001485,2]
[424883708,1781232641000,-2500.0,0.0001485,2]
[424883706,1781232641000,-307.52,0.00014812,2]
[424883703,1781232641000,-166.66,0.0001475,2]
[424883704,1781232641000,-301.04,0.00014764,2]
[424883718,1781232641000,-313.93,0.00014921,2]
[424883711,1781232641000,-600.0,0.0001485,2]
[424883722,1781232641000,-301.04,0.00014981,2]
[424883720,1781232641000,-600.0,0.0001496,2]
[424883715,1781232641000,-301.04,0.00014856,2]
[424883716,1781232641000,-301.04,0.000149,2]
[424883721,1781232641000,-377.31691647,0.0001496,2]
[424883714,1781232641000,-600.0,0.0001485,2]
[424883713,1781232641000,-600.0,0.0001485,2]
[424883717,1781232641000,-420.0,0.00014903,2]
[424883712,1781232641000,-600.0,0.0001485,2]
[424883794,1781232642000,-967.62,0.00019436,2]
[424883797,1781232642000,-250.0,0.00019656,2]
[424883798,1781232642000,-150.0,0.00019656,2]
[424883796,1781232642000,-300.0,0.00019656,2]
[424883799,1781232642000,-873.97,0.00019659,2]
[424883782,1781232642000,-9999.99,0.00019339,2]
[424883787,1781232642000,-999.99,0.00019339,2]
[424883783,1781232642000,-875.44,0.00019339,2]
[424883779,1781232642000,-150.99,0.00019339,2]
[424883781,1781232642000,-435.84,0.00019339,2]
[424883792,1781232642000,-264.390866,0.00019404,2]
[424883795,1781232642000,-181.351313,0.00019613,2]
[424883786,1781232642000,-299.99,0.00019339,7]
[424883807,1781232642000,-200000.0,0.0002,2]
[424883793,1781232642000,-305.324455,0.00019419,2]
[424883789,1781232642000,-7593.19,0.00019339,2]
[424883804,1781232642000,-500.0,0.00019999,2]
[424883808,1781232642000,-464.737018,0.0002,2]
[424883805,1781232642000,-500.0,0.00019999,2]
[424883802,1781232642000,-500.0,0.00019899,2]
[424883806,1781232642000,-500.0,0.00019999,2]
[424883803,1781232642000,-8686.0196,0.000199,2]
[424883801,1781232642000,-1865.36488656,0.00019706,2]
[424883809,1781232642000,-85894.0,0.0002,2]
[424883811,1781232642000,-206.0,0.0002,2]
[424883810,1781232642000,-162.49307632,0.0002,2]
[424883778,1781232642000,-20005.03,0.00019339,2]
[424883791,1781232642000,-156.5,0.00019347,2]
[424883784,1781232642000,-4999.99,0.00019339,2]
[424883753,1781232642000,-666.4,0.00016438,2]
[424883785,1781232642000,-8224.61,0.00019339,2]
[424883812,1781232642000,-167.0,0.0002,2]
[424883751,1781232642000,-873.97,0.00016383,2]
[424883750,1781232642000,-967.62,0.00016197,2]
[424883760,1781232642000,-427.471106,0.00017653,2]
[424883759,1781232642000,-382.852772,0.0001764,2]
[424883752,1781232642000,-1500.0,0.00016418,2]
[424883755,1781232642000,-924.64983228,0.00017253,2]
[424883756,1781232642000,-734.17842592,0.00017314,2]
[424883754,1781232642000,-1555.5,0.00016966,2]
[424883757,1781232642000,-1613.0535,0.00017514,2]
[424883758,1781232642000,-164.971597,0.0001764,2]
[424883762,1781232642000,-967.62,0.00017816,2]
[424883761,1781232642000,-382.852772,0.00017653,2]
[424883767,1781232642000,-873.97,0.00018021,2]
[424883765,1781232642000,-12906.53,0.00018,2]
[424883773,1781232642000,-303.79337,0.00018952,2]
[424883766,1781232642000,-298.04,0.00018,2]
[424883763,1781232642000,-250.0,0.00017838,2]
[424883771,1781232642000,-404.36,0.000185,2]
[424883772,1781232642000,-1734.62772924,0.0001861,2]
[424883764,1781232642000,-26105.29,0.00018,2]
[424883769,1781232642000,-231.25259069,0.000184,2]
[424883768,1781232642000,-1672.7364795,0.00018062,2]
[424883770,1781232642000,-666.4,0.0001841,2]
[424883775,1781232642000,-1798.80895522,0.00019158,2]
[424883776,1781232642000,-22422.43006691,0.00019339,7]
[424883774,1781232642000,-174.539186,0.00018952,2]
[424883777,1781232642000,-160.0,0.00019339,7]
[424883813,1781232642000,-225.0,0.0002,2]
[424883749,1781232642000,-190.36690243,0.00015844,10]
[424883825,1781232642000,-181.351313,0.00020676,2]
[424883841,1781232642000,-227.0,0.00021,2]
[424883844,1781232642000,-5895.0,0.00021195,5]
[424883843,1781232642000,-3980.0,0.00021195,5]
[424883852,1781232642000,-500.0,0.00021195,2]
[424883862,1781232642000,-1235.18214925,0.0002135,2]
[424883851,1781232642000,-500.0,0.00021195,2]
[424883853,1781232642000,-511.922287,0.00021195,2]
[424883858,1781232642000,-1107.63007,0.0002135,2]
[424883855,1781232642000,-830.99,0.00021273,2]
[424883857,1781232642000,-1068.11,0.0002135,2]
[424883854,1781232642000,-5453.41,0.00021273,2]
[424883856,1781232642000,-1030.0,0.0002135,2]
[424883861,1781232642000,-151.0,0.0002135,2]
[424883839,1781232642000,-173.0,0.00021,2]
[424883859,1781232642000,-1148.61238259,0.0002135,2]